Cogmind - Beta 16 @@@ ROGUE MODE // 2026.01.15 @ 22:58:19 Player: Lazz Result: Destroyed by G-47 Trooper with Particle Gun Performance ------------- Evolutions (2) 1000 Regions Visited (3) 600 Robots Destroyed (31) 155 Value Destroyed (863) 863 Prototype IDs (1) 20 Alien Tech Used (0) 0 Bonus (98) 98 TOTAL SCORE: 2736 Bonus ------- High Alert Combat Kills 98 Cogmind --------- Core Integrity 0/550 Matter 176/300 Energy 75/100 System Corruption 2% Temperature Danger (421) Movement Core (400) Ox7 Location -8/Materials Parts ------- > --- POWER (1) -------- (None) > --- PROPULSION (4) --- (None) > --- UTILITY (4) ------ Large Storage Unit > --- WEAPON (2) ------- Heavy Particle Gun > --- INVENTORY (15) --- Improved Ion Engine Aluminum Leg Compact Battery (200) Medium Matter Pod (100) Faulty Heavy Particle Gun Light Assault Rifle Peak State ------------ > --- POWER ------------ Deuterium Engine > --- PROPULSION ------- Wheel Wheel Wheel Wheel > --- UTILITY ---------- Small Storage Unit Subdweller Optics Scrap Shield > --- WEAPON ----------- Subdweller Beam Cannon Light Assault Rifle > --- INVENTORY -------- Wheel Wheel Subdweller Monowheel Compact Battery Medium Matter Pod Heavy Particle Gun Heavy Particle Gun [Rating: 18] Favorites ----------- Power Ion Engine Engine Ion Engine Propulsion Wheel Wheel Wheel Utility Small Storage Unit Device Improved Terrain Scanner Storage Small Storage Unit Protection Scrap Shield Weapon Light Assault Rifle Energy Gun Heavy Laser Energy Cannon Heavy Particle Cannon Ballistic Gun Light Assault Rifle Launcher Mini Grenade Launcher Build | -11 -10 -10 -8 ------- Run | Yrd Mat Sub Mat Slots Evolved 4 | . . . 4 Power . | . . . . Propulsion 2 | . . . 2 Utility 2 | . . . 2 Weapon . | . . . . Parts Attached 29 | 6 2 6 15 Power 3 | 1 . . 2 Engine 3 | 1 . . 2 Core . | . . . . Reactor . | . . . . Propulsion 12 | 2 1 3 6 Treads . | . . . . Leg . | . . . . Wheel 12 | 2 1 3 6 Hover . | . . . . Flight . | . . . . Utility 5 | 1 1 1 2 Device 2 | . 1 1 . Storage 2 | 1 . . 1 Processor . | . . . . Hackware . | . . . . Protection 1 | . . . 1 Artifact . | . . . . Weapon 9 | 2 . 2 5 Energy Gun 3 | . . . 3 Energy Cannon 2 | . . 1 1 Ballistic Gun 3 | 2 . 1 . Ballistic Cannon . | . . . . Launcher 1 | . . . 1 Special Weapon . | . . . . Impact Weapon . | . . . . Slashing Weapon . | . . . . Piercing Weapon . | . . . . Special Melee Weapon . | . . . . Unidentified Prototypes 1 | . . . 1 Parts Lost 21 | . . 5 16 Power 3 | . . 1 2 Propulsion 10 | . . 1 9 Utility 3 | . . 1 2 Weapon 5 | . . 2 3 Highest Loss Streak 12 | . . 5 12 To Critical Strikes . | . . . . Average Backups 6 | 2 6 7 7 Power . | . . . . Propulsion 3 | 1 4 6 2 Utility 1 | . 1 1 2 Weapon 1 | . 1 . 2 Tool/Special . | . . . . Unused Backups 6 | . . 1 5 Power 1 | . . . 1 Propulsion 1 | . . 1 . Utility 3 | . . . 3 Weapon 1 | . . . 1 Tool/Special . | . . . . Average Slot Usage (%) 84 | . 99 77 72 Engine 9 | . 14 4 6 Wheel 27 | . 28 24 29 Device 10 | . 13 12 7 Storage 12 | . 14 14 9 Energy Cannon 3 | . . 2 8 Ballistic Gun 17 | . 28 18 5 Launcher 1 | . . . 2 Peak Build Rating 18 | 6 9 9 18 Average Rating 9 | 5 8 7 14 On Entrance 6 | . 6 9 9 Avg Prop Armor Cover (%) . | . . . . Naked Turns . | . . . . Heaviest Build 43 | 12 13 16 43 Greatest Support 50 | 26 20 30 50 Greatest Overweight (x) 2 | 1 . . 2 Average Overweight (x) . | . . . . Largest Inventory Capacity 15 | 8 8 8 15 Average Capacity 9 | 7 8 8 12 Most Carried 12 | 8 8 8 12 Average Carried 6 | 3 6 7 7 Final Capacity 15 | 8 8 8 15 Final Carried 8 | 8 8 8 6 Class Distribution -------------------- 71% | Mutant 21% | Scavenger-Mutant 7% | Subdweller-Mutant Dominant Class ---------------- Mutant | -10/Materials Mutant | -10/Subcaves Scavenger-Mutant | -8/Materials Resources | -11 -10 -10 -8 ----------- Run | Yrd Mat Sub Mat Matter Collected 626 | 386 40 46 154 Remotely . | . . . . Salvage Created 875 | 203 42 90 540 Parts 66 | 22 8 4 32 Haulers Intercepted . | . . . . Recyclers Shooed 2 | 1 . . 1 Parts Field Recycled . | . . . . Retrieved Matter . | . . . . Parts Self-Destructed . | . . . . Prevented . | . . . . Parts Restored . | . . . . Kills | -11 -10 -10 -8 ------- Run | Yrd Mat Sub Mat Combat Hostiles Destroyed 19 | . . 2 17 Guns 5 | . . 2 3 Cannons 2 | . . . 2 AOE 12 | . . . 12 Classes Destroyed 9 | 3 1 1 4 Worker 3 | 2 . . 1 Builder 3 | . 2 . 1 Tunneler 5 | 5 . . . Recycler 1 | 1 . . . Swarmer 4 | . . . 4 Grunt 9 | . . . 9 Brawler 2 | . . . 2 Protector 2 | . . . 2 Subdweller 2 | . . 2 . Best Kill Streak 14 | 6 2 1 14 Combat Bots Only 12 | . . 1 12 Max Kills in Single Turn 3 | 1 1 1 3 Gunslinging . | . . . . Exploded 3 | . . . 3 Melee . | . . . . Uniques/NPCs Destroyed . | . . . . Combat | -11 -10 -10 -8 -------- Run | Yrd Mat Sub Mat Hostile Shots Fired 154 | . . 24 130 Missed 30 | . . 7 23 Hits 124 | . . 17 107 Projectile 124 | . . 17 107 Critical Strikes 5 | . . . 5 Damage Taken 2310 | . . 471 1839 Core 656 | . . 105 551 Absorbed by Shields . | . . . . Core Remaining (%) 79 | 100 . 58 . Volleys Fired 76 | 21 10 19 26 Largest 2 | 2 2 2 2 Hottest 144 | 40 40 40 144 Shots Fired 140 | 42 20 31 47 Gun 105 | 42 20 31 12 Cannon 22 | . . . 22 Launcher 13 | . . . 13 Special . | . . . . Kinetic 99 | 42 20 31 6 Thermal 26 | . . . 26 Explosive 13 | . . . 13 Electromagnetic 2 | . . . 2 Robot Hit Streak 19 | 8 4 16 19 Robot Miss Streak 3 | 3 3 3 3 Penetration Max . | . . . . Secondary Targets . | . . . . Shots Hit Robots 93 | 26 11 25 31 Core Hits 67 | 14 5 7 41 Critical Kills . | . . . . Critical Parts Destroyed . | . . . . Critical Strikes . | . . . . Melee Attacks . | . . . . Impact . | . . . . Slashing . | . . . . Piercing . | . . . . Sneak Attacks . | . . . . Combat Hostiles . | . . . . Follow-up Attacks . | . . . . Damage Inflicted 2298 | 219 79 194 1806 Guns 596 | 219 79 194 104 Cannons 404 | . . . 404 Explosions 1283 | . . . 1283 Melee . | . . . . Ramming 15 | . . . 15 Kinetic 537 | 219 79 194 45 Thermal 445 | . . . 445 Explosive 1261 | . . . 1261 Electromagnetic 40 | . . . 40 Impact . | . . . . Slashing . | . . . . Piercing . | . . . . Highest Corruption 2 | . . . 2 Average Corruption 1 | . . . 1 Corruption Purged . | . . . . Corruption Blocked . | . . . . Effects 5 | . . . 5 Message Errors 1 | . . . 1 Matter Fused 1 | . . . 1 Energy Discharges 1 | . . . 1 Parts Rejected 1 | . . . 1 Data Loss (minor) 1 | . . . 1 Overload Shots . | . . . . Overflow Damage 33 | . . . 33 Projectiles . | . . . . Explosions 33 | . . . 33 Melee . | . . . . Knockbacks . | . . . . Impact . | . . . . Kinetic . | . . . . Secondary . | . . . . Self-Inflicted Damage 154 | . . . 154 Shots 8 | . . . 8 Rammed 2 | . . . 2 Targets Rammed 2 | . . . 2 Kicked . | . . . . Crushed . | . . . . Highest Temperature 418 | . . . 418 Average Temperature 148 | . . . 148 Received Heat Transfer 1179 | . . 153 1026 Effects 1 | . . . 1 Energy Bleed 1 | . . . 1 Siege Activations . | . . . . Martial Activations . | . . . . Shielding Activations . | . . . . Robots Disrupted . | . . . . Combat Hostiles . | . . . . Robots Corrupted . | . . . . Combat Hostiles . | . . . . Parts Fried . | . . . . Impact Corruptions . | . . . . Robots Melted . | . . . . Combat Hostiles . | . . . . Parts Melted . | . . . . Heat Transferred 630 | . . . 630 Parts Sabotaged . | . . . . Parts Stolen . | . . . . Parts Stripped . | . . . . Power Chain Reactions . | . . . . Alert | -11 -10 -10 -8 ------- Run | Yrd Mat Sub Mat Maximum Alert Level 2 | . . . 2 Low Security (%) 79 | 100 100 . 46 Level 1 5 | . . . 14 Level 2 14 | . . . 38 Level 3 . | . . . . Level 4 . | . . . . Level 5 . | . . . . High Security . | . . . . Max Security . | . . . . Peak Influence 537 | 20 5 . 537 Initial . | . . . . Average 96 | 4 . . 246 Influence Increases 758 | 40 10 . 708 Destroy 0b10 Robot/C 300 | . . . 300 Destroy 0b10 Robot/NC 70 | 40 10 . 20 Destroy Leader 50 | . . . 50 Disable Machine 45 | . . . 45 Anti-Garrison Action 150 | . . . 150 Destroy Structure 53 | . . . 53 Lose Combat Pursuer 90 | . . . 90 Influence Decreases 270 | 40 10 . 220 Time Decay 130 | 40 10 . 80 Lost Part 140 | . . . 140 Squads Dispatched 3 | . . . 3 Investigation . | . . . . Extermination . | . . . . Reinforcement 1 | . . . 1 Assault 2 | . . . 2 Garrison . | . . . . Intercept . | . . . . Searches Triggered . | . . . . Construction Impeded 1 | . . . 1 Haulers Reinforced . | . . . . Active Scanning Responses . | . . . . Cargo Convoy Interrupts . | . . . . Stealth | -11 -10 -10 -8 --------- Run | Yrd Mat Sub Mat Distress Signals 1 | . . . 1 Communications Jammed . | . . . . Distress Signals . | . . . . Times Spotted 29 | . . 2 27 Peak Tracking Total 8 | . . 2 8 Tactical Retreats 2 | . . . 2 Traps | -11 -10 -10 -8 ------- Run | Yrd Mat Sub Mat Traps Triggered 1 | . . . 1 Indirectly . | . . . . Trap Hack Attempts . | . . . . Triggered . | . . . . Disarmed . | . . . . Reprogrammed . | . . . . Reused . | . . . . Traps Extracted . | . . . . Installed . | . . . . Triggered . | . . . . Machines | -11 -10 -10 -8 ---------- Run | Yrd Mat Sub Mat Machines Disabled 4 | . . . 4 Max in Single Turn 1 | . . . 1 Garrison Access 1 | . . . 1 Machines Repaired . | . . . . Machines Dismantled . | . . . . Machines Sabotaged . | . . . . Overloaded Fab Kills . | . . . . Hacking | -11 -10 -10 -8 --------- Run | Yrd Mat Sub Mat Machines Accessed 1 | . . . 1 Terminals 1 | . . . 1 Fabricators . | . . . . Repair Stations . | . . . . Recycling Units . | . . . . Scanalyzers . | . . . . Garrison Access . | . . . . Total Hacks 2 | . . . 2 Successful . | . . . . Failed 2 | . . . 2 Catastrophic 1 | . . . 1 Database Lockouts . | . . . . Manual 2 | . . . 2 Terminals 2 | . . . 2 Fabricators . | . . . . Repair Stations . | . . . . Recycling Units . | . . . . Scanalyzers . | . . . . Garrison Access . | . . . . Terminal Hacks . | . . . . Fabricator Hacks . | . . . . Repair Station Hacks . | . . . . Recycling Unit Hacks . | . . . . Scanalyzer . | . . . . Garrison Access Hacks . | . . . . Unauthorized Hacks . | . . . . Terminals . | . . . . Fabricators . | . . . . Repair Stations . | . . . . Recycling Units . | . . . . Scanalyzers . | . . . . Garrison Access . | . . . . Data Cores Recovered . | . . . . Used . | . . . . Hacking Detections 1 | . . . 1 Full Trace Events . | . . . . Feedback Events . | . . . . Feedback Blocked . | . . . . Robot Schematics Acquired . | . . . . Robots Built . | . . . . Authchips . | . . . . Time . | . . . . Total Robot Build Rating . | . . . . Part Schematics Acquired . | . . . . Parts Built . | . . . . Authchips . | . . . . Time . | . . . . Total Part Build Rating . | . . . . Part Studies Acquired . | . . . . Parts Repaired . | . . . . Time . | . . . . Parts Recycled . | . . . . Recycled Matter . | . . . . Retrieved Matter . | . . . . Retrieved Components . | . . . . Parts Scanalyzed . | . . . . Part Schematics Acquired . | . . . . Parts Damaged . | . . . . Bothacking | -11 -10 -10 -8 ------------ Run | Yrd Mat Sub Mat Used RIF Installer . | . . . . Robots Hacked . | . . . . Non-combat . | . . . . Combat . | . . . . Robot Hacks Applied . | . . . . Relay Couplers Released 1 | . . . 1 Machine Destruction 1 | . . . 1 Fabnet Peak Effective % . | . . . . Robots Rewired . | . . . . Allies Hacked . | . . . . Hacks Repelled . | . . . . Allies | -11 -10 -10 -8 -------- Run | Yrd Mat Sub Mat Total Allies . | . . . . Largest Group . | . . . . Highest-Rated Group . | . . . . Highest-Rated Ally . | . . . . Total Orders . | . . . . Ally Attacks . | . . . . Total Damage . | . . . . Kills . | . . . . Allies Corrupted . | . . . . Allies Melted . | . . . . Intel | -11 -10 -10 -8 ------- Run | Yrd Mat Sub Mat Active Infowar (turns) 422 | . 258 123 41 Optics 115 | . . 74 41 Terrain 307 | . 258 49 . Robot Analysis Total . | . . . . Derelict Logs Recovered . | . . . . Drone Launches . | . . . . Drone Recoveries . | . . . . Exploration | -11 -10 -10 -8 ------------- Run | Yrd Mat Sub Mat Turns Passed 816 | 152 259 147 258 Spaces Moved 368 | 85 37 88 158 Core 15 | 15 . . . Treads . | . . . . Legs . | . . . . Wheels 353 | 70 37 88 158 Hover . | . . . . Flight . | . . . . Fastest Speed 50 | 50 80 80 80 Average Speed 86 | 83 80 92 86 Slowest Speed 110 | 95 80 95 110 Overloaded Moves . | . . . . Propulsion Burnouts . | . . . . Robots Hopped . | . . . . Potential Cave-ins . | . . . . Cave-ins Triggered . | . . . . Exploration Rate (%) 9 | 3 8 11 16 Regions Visited 3 Branch Regions 1 Pre-discovered Areas . | . . . . Known Exits Taken . | . . . . Unknown Exits Taken 3 | 1 1 1 . Scrap Searched . | . . . . Spaces Dug . | . . . . Terrain Destroyed 67 | . . . 67 Melee . | . . . . Projectile 3 | . . . 3 AOE 64 | . . . 64 Terrain Rammed . | . . . . Walls Destroyed . | . . . . Machines Disabled . | . . . . Actions | -11 -10 -10 -8 --------- Run | Yrd Mat Sub Mat Total 744 | 132 250 129 233 Wait 226 | 6 200 10 10 Move 365 | 84 36 87 158 Hop . | . . . . Pick Up 33 | 14 2 3 14 Fast Attach 3 | . . 2 1 Attach 27 | 6 2 3 16 Detach 2 | . . 1 1 Swap 4 | . . 1 3 Drop 6 | 1 . 3 2 Fire 76 | 21 10 19 26 Melee . | . . . . Ram 2 | . . . 2 Kick . | . . . . Crush . | . . . . Escape Stasis . | . . . . Rewire . | . . . . Trap . | . . . . Miscellaneous . | . . . . Route ------- -11/Scrapyard -10/Materials -10/Subcaves -8/Materials History --------- Turn | Location | Event 9 | -11/Scrapyard | Discovered new exit (range 15) 153 | -11/Scrapyard | Entered Materials 290 | -10/Materials | Discovered new exit (range 7) 308 | -10/Materials | Build established: Mutant 412 | -10/Materials | Entered Subcaves 413 | -10/Subcaves | Approached by a straggling Scientist 415 | -10/Subcaves | Ambushed by Subdwellers from Twisted Machinery 492 | -10/Subcaves | Lost 5 parts (1p1n1u2w) 505 | -10/Subcaves | A swath of the cavern ceiling suddenly collapsed 512 | -10/Subcaves | Shifting Twisted Machinery released Sub. Beam Cannon 532 | -10/Subcaves | Discovered new exit (range 20) 540 | -10/Subcaves | Shifting Twisted Machinery released Spk. Treads 542 | -10/Subcaves | Shifting Twisted Machinery released Scrap Shield 559 | -10/Subcaves | Entered Materials 559 | -8/Materials | Evolved 4 slots: Propulsion x2, Utility x2 761 | -8/Materials | Destroyed 12 combat bots 786 | -8/Materials | Core integrity fell below 50% 811 | -8/Materials | Core integrity fell below 20% 817 | -8/Materials | Destroyed by G-47 Trooper with Particle Gun Last Messages --------------- 00796_ Wheel destroyed. 00796_ Acquired Aluminum Leg. 00806_ Shock Rifle destroyed. 00808_ Overheating: Energy bleed (-14). 00808_ The unstable cave ceiling collapses. 00808_ G-47 Trooper crushed by falling debris. 00809_ Critical hit (Burn: +37). 00811_ Hvy. Laser destroyed. 00811_ Identified Relay Coupler [NC]. 00811_ Relay Coupler [NC] fries itself. 00813_ System corrupted: Hvy. Particle Cannon rejected. 00813_ Lgt. Angular Momentum Engine destroyed. 00813_ G-47 Trooper destroyed. 00813_ Destroyed Lgt. Nuclear Core. 00813_ G-47 Trooper destroyed. 00814_ Mni. Grenade Launcher destroyed. 00815_ Identified Hvy. Particle Gun. 00816_ R-06 Scavenger collects Imp. Ion Engine. 00817_ R-06 Scavenger collects Particle Gun. Map ----- +----------------------------------------------------+ | ??????????????????######?????????? | | ??????????????????+ ??????????? | | ??????????????????# ???????????? | | ??????????????????# ########????? | | ?????????###/###### # #????? | | ####+##### + #????? | | % ! # #????? | | # #????? | | ##+##### #????? | | """ """ # ## #????? | | " """ """ # ##+##+###????? | | T """ """ # ] ## #??????? | | " """ %"" # ## #??????? | | # ## ######## | | # ## # """ # | | ### ###### # ## # """ !# | | ??# ###! ###/#### # """ # | | ??# ##! + # | | ??# ##! # # | | ??# ## #####+#####+# # # # | | ??# ##! #?? # # #####? | | ??# ###! ## # #?? | | ??# #?##### # " !% #?? | | ??# #?????# # #?? | | ??# #?????# !* # !gg% ##? | | ??# #?????# !! # """@%r #? | | ??# #?????# *! # G % r #?? | | ??? ??????####### =% ! #?? | | ??? ????????????# / g ##?? | | ??? ????????????##########= #?? | | ?????????????????# #% ##?? | | ???????????????### # ##?? | | ???????????????# % #% #??? | | ???????????????## # #??? | | ??????????####### = #??? | | ????????? T * ??? | | ??????????? """" # ! ??? | | ????????????"""" # ?? | | ??????????????""?# #?? | | ?????????????? ??######### #?? | | ?????????????????????????# ##?? | | ?????????????????????????## #??? | | ??????????????????????????? ??? | | ??????????????????????????? ??? | | ?????????????????????????????????? | | ?????????????????????????????????? | | ?????????????????????????????????? | | ?????????????????????????????????? | | ?????????????????????????????????? | | ?????????????????????????????????? | +----------------------------------------------------+ Best States ------------- Heat Dissipation 31 Energy Generation 18 Energy Capacity 275 Matter Stores 300 Matter Capacity 300 Sight Range 21 Terrain Scan Range 16 Terrain Scan Density 10 Armor Coverage 800 Evasion (%) 44 Item Schematics ----------------- None Robot Schematics ------------------ None Fabricated ------------ Nothing Repaired ---------- Nothing Studied --------- None Alien Tech Used ----------------- None Achievements -------------- None Challenges ------------ None Game ------ Seed ImpactEnhancedDriver Manual? 0 Play Time 00:11:08 Cumulative 130.0 hours Start 2026.01.15 @ 22:49:07 End 2026.01.15 @ 22:58:19 Sessions 1 Manual Loads 0 Difficulty Rogue Special Mode None Game No. 186 Rogue 186 Adventurer 0 Explorer 0 Win Type - Total 1 Types 1/0/0/0/0/0/0/0/0/0 Lore% 63 Gallery% 57 Achievement% 42 Wizard Run 0 Options --------- Layout 2 ASCII 0 Keyboard 0 Movement Mouse Keybinds 0 Fullscreen 1 Font 16/SmallcapsGlow Map View 25x24 Zoom Use 99% Tactical HUD 1 Map Filters NONE Filters NONE Steam SD RUN: 4c6865f7-d594-43bd-95ff-3993d2ce1154